Cogmind - Beta 17.1 @@@ ROGUE MODE // 2026.09.04 @ 13:24:24 Player: Zane Result: Sacrificed to X0-1V1 Performance ------------- Evolutions (0) 0 Regions Visited (1) 200 Robots Destroyed (26) 130 Value Destroyed (554) 554 Prototype IDs (3) 60 Alien Tech Used (0) 0 Bonus (0) 0 TOTAL SCORE: 944 Bonus ------- None Cogmind --------- Core Integrity 0/250 Matter 248/300 Energy 250/250 System Corruption 2% Temperature Cool (0) Movement Walking (120) Location -10/Materials Parts ------- > --- POWER (1) -------- Ion Engine > --- PROPULSION (2) --- Aluminum Leg Aluminum Leg > --- UTILITY (2) ------ Medium Storage Unit Seismic Detector > --- WEAPON (2) ------- Light Assault Rifle Light Assault Rifle > --- INVENTORY (10) --- Wheel Flight Unit Flight Unit Flight Unit Small Storage Unit Sensor Array Hardened Light Armor Plating Hacking Suite Grenade Launcher Datajack Peak State ------------ > --- POWER ------------ Light Ion Engine > --- PROPULSION ------- Aluminum Leg Aluminum Leg > --- UTILITY ---------- Medium Storage Unit Seismic Detector > --- WEAPON ----------- Assault Rifle Light Assault Rifle > --- INVENTORY -------- Light Ion Engine Aluminum Leg Aluminum Leg Wheel Small Storage Unit Hacking Suite Light Assault Rifle Light Assault Rifle Light Assault Rifle Grenade Launcher [Rating: 8] Favorites ----------- Power Ion Engine Engine Ion Engine Propulsion Aluminum Leg Leg Aluminum Leg Utility Seismic Detector Device Seismic Detector Storage Medium Storage Unit Weapon Light Assault Rifle Ballistic Gun Light Assault Rifle Build | -11 -10 ------- Run | Yrd Mat Slots Evolved . | . . Power . | . . Propulsion . | . . Utility . | . . Weapon . | . . Parts Attached 19 | 7 12 Power 3 | 1 2 Engine 3 | 1 2 Core . | . . Reactor . | . . Propulsion 7 | 2 5 Treads . | . . Leg 7 | 2 5 Wheel . | . . Hover . | . . Flight . | . . Utility 3 | 2 1 Device 1 | 1 . Storage 2 | 1 1 Processor . | . . Hackware . | . . Protection . | . . Artifact . | . . Weapon 6 | 2 4 Energy Gun . | . . Energy Cannon . | . . Ballistic Gun 6 | 2 4 Ballistic Cannon . | . . Launcher . | . . Special Weapon . | . . Impact Weapon . | . . Slashing Weapon . | . . Piercing Weapon . | . . Special Melee Weapon . | . . Unidentified Prototypes . | . . Parts Lost 2 | . 2 Power 1 | . 1 Propulsion . | . . Utility . | . . Weapon 1 | . 1 Highest Loss Streak 1 | . 1 To Critical Strikes . | . . Average Backups 8 | 1 9 Power . | . . Propulsion 3 | . 3 Utility 2 | . 2 Weapon 1 | . 2 Tool/Special . | . . Unused Backups 10 | . 10 Power . | . . Propulsion 4 | . 4 Utility 3 | . 3 Weapon 2 | . 2 Tool/Special 1 | . 1 Average Slot Usage (%) 100 | . 100 Engine 14 | . 14 Leg 28 | . 28 Device 14 | . 14 Storage 14 | . 14 Ballistic Gun 28 | . 28 Peak Build Rating 8 | 7 8 Average Rating 7 | 5 7 On Entrance 3 | . 7 Avg Prop Armor Cover (%) . | . . Naked Turns . | . . Heaviest Build 18 | 12 18 Greatest Support 20 | 20 20 Greatest Overweight (x) 1 | 1 . Average Overweight (x) . | . . Largest Inventory Capacity 10 | 8 10 Average Capacity 9 | 7 9 Most Carried 10 | 3 10 Average Carried 8 | 2 9 Final Capacity 10 | 8 10 Final Carried 10 | 3 10 Class Distribution -------------------- 82% | Mutant 18% | Scavenger-Mutant Dominant Class ---------------- Mutant | -10/Materials Resources | -11 -10 ----------- Run | Yrd Mat Matter Collected 682 | 235 447 Remotely . | . . Salvage Created 941 | 30 911 Parts 61 | 5 56 Haulers Intercepted 1 | . 1 Recyclers Shooed 1 | . 1 Parts Field Recycled . | . . Retrieved Matter . | . . Parts Self-Destructed . | . . Prevented . | . . Parts Restored . | . . Kills | -11 -10 ------- Run | Yrd Mat Combat Hostiles Destroyed 18 | . 18 Guns 18 | . 18 Classes Destroyed 7 | 1 6 Worker 1 | . 1 Tunneler 1 | 1 . Hauler 1 | . 1 Recycler 3 | . 3 Operator 2 | . 2 Swarmer 6 | . 6 Grunt 12 | . 12 Best Kill Streak 5 | 1 5 Combat Bots Only 3 | . 3 Max Kills in Single Turn 1 | 1 1 Gunslinging . | . . Exploded . | . . Melee . | . . Uniques/NPCs Destroyed . | . . Combat | -11 -10 -------- Run | Yrd Mat Hostile Shots Fired 109 | . 109 Missed 27 | . 27 Hits 82 | . 82 Projectile 82 | . 82 Critical Strikes 2 | . 2 Damage Taken 934 | . 934 Core 187 | . 187 Absorbed by Shields . | . . Core Remaining (%) 100 | 100 . Volleys Fired 106 | 2 104 Largest 2 | 2 2 Hottest 40 | 40 40 Shots Fired 212 | 4 208 Gun 212 | 4 208 Cannon . | . . Launcher . | . . Special . | . . Kinetic 212 | 4 208 Thermal . | . . Explosive . | . . Electromagnetic . | . . Robot Hit Streak 15 | 2 15 Robot Miss Streak 7 | 2 7 Penetration Max . | . . Secondary Targets 1 | . 1 Max Gunslinging Chain 1 | . 1 Shots Hit Robots 128 | 2 126 Core Hits 54 | 1 53 Critical Kills . | . . Critical Parts Destroyed 2 | . 2 Critical Strikes 2 | . 2 Destroy 2 | . 2 Melee Attacks . | . . Impact . | . . Slashing . | . . Piercing . | . . Sneak Attacks . | . . Combat Hostiles . | . . Follow-up Attacks . | . . Damage Inflicted 1130 | 24 1106 Guns 1129 | 24 1105 Cannons . | . . Explosions . | . . Melee . | . . Ramming 1 | . 1 Kinetic 1129 | 24 1105 Thermal . | . . Explosive . | . . Electromagnetic . | . . Impact . | . . Slashing . | . . Piercing . | . . Highest Corruption 2 | . 2 Average Corruption 2 | . 2 Corruption Purged . | . . Corruption Blocked . | . . Effects 16 | . 16 Message Errors 2 | . 2 Matter Fused 6 | . 6 Heat Flow Errors 1 | . 1 Energy Discharges 3 | . 3 Data Loss (minor) 1 | . 1 Data Loss (major) 1 | . 1 Misfires 1 | . 1 Weapon Failures 1 | . 1 Overload Shots . | . . Overflow Damage . | . . Projectiles . | . . Explosions . | . . Melee . | . . Knockbacks . | . . Impact . | . . Kinetic . | . . Secondary . | . . Self-Inflicted Damage . | . . Shots . | . . Rammed . | . . Targets Rammed 1 | . 1 Kicked 1 | . 1 Crushed . | . . Highest Temperature 158 | . 158 Average Temperature 15 | . 15 Received Heat Transfer 432 | . 432 Siege Activations . | . . Martial Activations . | . . Shielding Activations . | . . Robots Disrupted . | . . Combat Hostiles . | . . Robots Corrupted . | . . Combat Hostiles . | . . Parts Fried . | . . Impact Corruptions . | . . Robots Melted . | . . Combat Hostiles . | . . Parts Melted . | . . Heat Transferred . | . . Parts Sabotaged . | . . Parts Stolen . | . . Parts Stripped . | . . Power Chain Reactions . | . . Alert | -11 -10 ------- Run | Yrd Mat Maximum Alert Level . | . . Low Security (%) 100 | 100 100 Level 1 . | . . Level 2 . | . . Level 3 . | . . Level 4 . | . . Level 5 . | . . High Security . | . . Max Security . | . . Peak Influence 168 | 5 168 Initial . | . . Average 46 | . 48 Influence Increases 590 | 5 585 Destroy 0b10 Robot/C 360 | . 360 Destroy 0b10 Robot/NC 40 | 5 35 Destroy Leader 82 | . 82 Successful Hack 33 | . 33 Lose Combat Pursuer 75 | . 75 Influence Decreases 457 | 5 452 Time Decay 447 | 5 442 Lost Part 10 | . 10 Squads Dispatched 4 | . 4 Investigation 1 | . 1 Extermination . | . . Reinforcement 3 | . 3 Assault . | . . Garrison . | . . Intercept . | . . Searches Triggered . | . . Construction Impeded . | . . Haulers Reinforced . | . . Active Scanning Responses . | . . Cargo Convoy Interrupts . | . . Stealth | -11 -10 --------- Run | Yrd Mat Distress Signals 2 | . 2 Communications Jammed . | . . Distress Signals . | . . Times Spotted 38 | . 38 Peak Tracking Total 6 | . 6 Tactical Retreats 4 | . 4 Traps | -11 -10 ------- Run | Yrd Mat Traps Triggered 2 | . 2 Indirectly . | . . Trap Hack Attempts . | . . Triggered . | . . Disarmed . | . . Reprogrammed . | . . Reused . | . . Traps Extracted . | . . Installed . | . . Triggered . | . . Machines | -11 -10 ---------- Run | Yrd Mat Machines Disabled . | . . Max in Single Turn . | . . Machines Repaired . | . . Machines Dismantled . | . . Machines Sabotaged . | . . Overloaded Fab Kills . | . . Hacking | -11 -10 --------- Run | Yrd Mat Machines Accessed 6 | . 6 Terminals 6 | . 6 Fabricators . | . . Repair Stations . | . . Recycling Units . | . . Scanalyzers . | . . Garrison Access . | . . Total Hacks 23 | . 23 Successful 11 | . 11 Failed 12 | . 12 Catastrophic . | . . Database Lockouts . | . . Manual 16 | . 16 Terminals 23 | . 23 Fabricators . | . . Repair Stations . | . . Recycling Units . | . . Scanalyzers . | . . Garrison Access . | . . Terminal Hacks 7 | . 7 Robot Analysis 1 | . 1 Prototype ID Bank 2 | . 2 Terminal Index 1 | . 1 Hauler Manifests 1 | . 1 Registered Components 1 | . 1 Zone Layout 1 | . 1 Fabricator Hacks . | . . Repair Station Hacks . | . . Recycling Unit Hacks . | . . Scanalyzer . | . . Garrison Access Hacks . | . . Unauthorized Hacks 4 | . 4 Terminals 4 | . 4 Botnet 3 | . 3 Operators 1 | . 1 Fabricators . | . . Repair Stations . | . . Recycling Units . | . . Scanalyzers . | . . Garrison Access . | . . Data Cores Recovered . | . . Used . | . . Hacking Detections 6 | . 6 Full Trace Events 1 | . 1 Feedback Events . | . . Feedback Blocked . | . . Robot Schematics Acquired . | . . Robots Built . | . . Authchips . | . . Time . | . . Total Robot Build Rating . | . . Part Schematics Acquired . | . . Parts Built . | . . Authchips . | . . Time . | . . Total Part Build Rating . | . . Part Studies Acquired . | . . Parts Repaired . | . . Time . | . . Parts Recycled . | . . Recycled Matter . | . . Retrieved Matter . | . . Retrieved Components . | . . Parts Scanalyzed . | . . Part Schematics Acquired . | . . Parts Damaged . | . . Bothacking | -11 -10 ------------ Run | Yrd Mat Used RIF Installer . | . . Robots Hacked . | . . Non-combat . | . . Combat . | . . Robot Hacks Applied . | . . Relay Couplers Released . | . . Fabnet Peak Effective % . | . . Robots Rewired . | . . Allies Hacked . | . . Hacks Repelled . | . . Allies | -11 -10 -------- Run | Yrd Mat Total Allies . | . . Largest Group . | . . Highest-Rated Group . | . . Highest-Rated Ally . | . . Total Orders . | . . Ally Attacks . | . . Total Damage . | . . Kills . | . . Allies Corrupted . | . . Allies Melted . | . . Intel | -11 -10 ------- Run | Yrd Mat Active Infowar (turns) 1349 | 11 1338 Seismic 1349 | 11 1338 Robot Analysis Total 1 | . 1 Derelict Logs Recovered . | . . Drone Launches . | . . Drone Recoveries . | . . Exploration | -11 -10 ------------- Run | Yrd Mat Turns Passed 1402 | 64 1338 Spaces Moved 780 | 41 739 Core 7 | 7 . Treads . | . . Legs 773 | 34 739 Wheels . | . . Hover . | . . Flight . | . . Fastest Speed 50 | 50 120 Average Speed 119 | 109 120 Slowest Speed 190 | 190 120 Overloaded Moves . | . . Propulsion Burnouts . | . . Robots Hopped . | . . Potential Cave-ins . | . . Cave-ins Triggered . | . . Exploration Rate (%) 51 | 4 98 Regions Visited 1 Branch Regions . Pre-discovered Areas . | . . Known Exits Taken . | . . Unknown Exits Taken 1 | 1 . Scrap Searched . | . . Spaces Dug . | . . Terrain Destroyed . | . . Melee . | . . Projectile . | . . AOE . | . . Terrain Rammed . | . . Walls Destroyed . | . . Machines Disabled . | . . Actions | -11 -10 --------- Run | Yrd Mat Total 1070 | 53 1017 Wait 139 | 1 138 Move 779 | 40 739 Hop . | . . Pick Up 14 | 3 11 Fast Attach 7 | 7 . Attach 2 | . 2 Detach . | . . Swap 12 | . 12 Drop 10 | . 10 Fire 106 | 2 104 Melee . | . . Ram . | . . Kick 1 | . 1 Crush . | . . Escape Stasis . | . . Rewire . | . . Trap . | . . Miscellaneous . | . . Route ------- -11/Scrapyard -10/Materials (discovered 6 exits: [*Mat x3] / [*Min x2] / [*Sub]) History --------- Turn | Location | Event 4 | -11/Scrapyard | Discovered new exit (range 15) 65 | -11/Scrapyard | Entered Materials 212 | -10/Materials | Discovered new exit (range 15) 258 | -10/Materials | Discovered new exit (range 15) 326 | -10/Materials | Build established: Mutant 501 | -10/Materials | Discovered new exit (range 10) 850 | -10/Materials | Core integrity fell below 50% 854 | -10/Materials | Discovered new exit (range 7) 899 | -10/Materials | Discovered new exit (range 14) 1393 | -10/Materials | Discovered new exit (range 9) 1403 | -10/Materials | Made a sacrifice at D.C.S.S. Altar Unit 1403 | -10/Materials | Sacrificed to X0-1V1 Last Messages --------------- 6x Flight Unit >>Inventory(Components) Retrieving component inventory records... Found 4 registered component stockpiles: MLKT2A6B4B: Lgt. Treads 0DPUGF1KE4: Sensor Array F3872LJEOA: Hcp. Matter Pod JK903W9I9Q: Targeting Computer Downloaded coordinate data. 01263_ System corrupted: Energy discharge (-72). 01289_ R-06 Scavenger collects Particle Gun. 01292_ R-06 Scavenger collects Imp. Heat Sink. 01296_ R-06 Scavenger collects Aluminum Leg. 01342_ System corrupted: Heat flow error (+176). 01356_ K-01 Serf cleans the Matter Pump. 01361_ O-16 Technician destroyed. 01363_ K-01 Serf collects debris. 01384_ System corrupted: Matter fused (-8). 01393_ EXIT=FOUND 01403_ Connecting with D.C.S.S. Altar Unit... Map ----- +----------------------------------------------------+ | ???????# """"" # #??# # # #??????# # | | ???????# ? """ # #??######+#### # #??????# # | | ???????#??######## ####### ###+## #??????# # | | ??????????# #??????# # | | ########### < #??????# # | | #??????# # | | ######################### ############### # | | #???????????# T ## ##?# ! # # | | #???????????# / ## #??# # # | | #???????????# ## #??# [ # # | | ####???????????# """" """" ## #??# # # | | #??????????????# """" """" ## #??# !!! ! # # | | #??????????????# """"="""" ## #??# !! + # | | #???????######## %[ % ## #### !! # # | | ######### ########+##### ### /###### # | | ## % % # | | ## % " ####### | | ## #?????? | | ### ## ########+##### ####### #?????? | | #?# ####+###### u ###+######### #?????? | | #?# # ## # % #?# #?????? | | #?# # """ ## # #?# #?????? | | #?# # """ ## # #?# #?????? | | ### # """ ## # """ """ #?# #?????? | | ^ # ## # """ """ #?# #?????? | | / # ## k @ # """ """ #?# #####?? | | =% # ####<####X## #?# ==#?? | | *""" # #??##???#### ?#?# ==#?? | | """ ################################# **#?? | | """ ## =# **#?? | | + """ # ^ [ !#?? | | ## """ # !!#?? | | T###+#### """ %! + ### ################+#####?? | | ## # ! # #?? #??????# #?????? | | #" ""# ! # < #???##??????# #?????? | | #" T"# "Y" # #???????????# #?????? | | #" ""# """ #####?????####### [#?????? | | #T ###########?????????# #######+###?????? | | #" """ #???????????????????# #?????? | | #" """ #???????????????????# ! #?????? | | #" """ #???????????????????# ###########?????? | | ## #???????????????????######???????????????? | | ## #????????????????????????????????????????? | | #?#######????????????????????????????????????????? | | | | | | | | | | | | | +----------------------------------------------------+ Best States ------------- Heat Dissipation 25 Energy Generation 10 Energy Capacity 250 Matter Stores 300 Matter Capacity 300 Sight Range 16 Terrain Scan Density 10 Evasion (%) 55 Item Schematics ----------------- None Robot Schematics ------------------ None Fabricated ------------ Nothing Repaired ---------- Nothing Studied --------- None Alien Tech Used ----------------- None Achievements -------------- None Challenges ------------ None Game ------ Seed FortressStorageDrivehammer Manual? 0 Play Time 00:17:23 Cumulative 66.1 hours Start 2026.09.04 @ 12:52:58 End 2026.09.04 @ 13:24:24 Sessions 1 Manual Loads 0 Difficulty Rogue Special Mode None Game No. 80 Rogue 80 Adventurer 0 Explorer 0 Win Type - Total 0 Types 0/0/0/0/0/0/0/0/0/0 Lore% 54 Gallery% 41 Achievement% 32 Wizard Run 0 Options --------- Layout 1 ASCII 0 Keyboard 0 Movement Numpad Keybinds 0 Fullscreen 2 Font 24/Smallcaps Map View 50x35 Zoom Use 0% Tactical HUD 1 Map Filters NONE Filters NONE Steam 1 RUN: 84ffff7a-7fa7-4176-ac69-a3d170dec969